[Event "Titled Tuesday Blitz June 13 Late 2023"]
[White "Balla, Tamas-Kristof"]
[Black "Rodrigue-Lemieux, Shawn"]
[WhiteFideId "1208497"]
[BlackFideId "2620049"]
[WhiteElo "2334"]
[BlackElo "2405"]
[Result "0-1"]
[Round "1"]
[TimeControl "180+2"]
[Date "2023.06.13"]
[WhiteClock "0:00:45"]
[BlackClock "0:00:26"]
[Board "59"]

1. e4 {[%clk 0:02:57]}  g6 {[%clk 0:02:51]} 2. d4 {[%clk 0:02:57]}  Bg7 {[%clk 0:02:51]} 3. Nc3 {[%clk 0:02:56]}  a6 {[%clk 0:02:51]} 4. f4 {[%clk 0:02:56]}  b5 {[%clk 0:02:51]} 5. Nf3 {[%clk 0:02:53]}  Bb7 {[%clk 0:02:51]} 6. Bd3 {[%clk 0:02:48]}  d6 {[%clk 0:02:51]} 7. O-O {[%clk 0:02:45]}  Nd7 {[%clk 0:02:51]} 8. e5 {[%clk 0:02:40]}  Nh6 {[%clk 0:02:49]} 9. Ne2 {[%clk 0:02:22]}  O-O {[%clk 0:02:43]} 10. c3 {[%clk 0:02:22]}  c5 {[%clk 0:02:43]} 11. Ng3 {[%clk 0:02:17]}  Rc8 {[%clk 0:02:35]} 12. Bd2 {[%clk 0:02:16]}  Qb6 {[%clk 0:02:33]} 13. Kh1 {[%clk 0:02:10]}  cxd4 {[%clk 0:02:30]} 14. cxd4 {[%clk 0:02:11]}  dxe5 {[%clk 0:02:27]} 15. dxe5 {[%clk 0:02:05]}  Rfd8 {[%clk 0:02:25]} 16. Qe2 {[%clk 0:02:00]}  Nc5 {[%clk 0:02:23]} 17. Bc2 {[%clk 0:01:48]}  Ne6 {[%clk 0:02:19]} 18. Be3 {[%clk 0:01:45]}  Qa5 {[%clk 0:02:05]} 19. Bb3 {[%clk 0:01:40]}  Nc5 {[%clk 0:01:58]} 20. Bxc5 {[%clk 0:01:39]}  Rxc5 {[%clk 0:01:58]} 21. Rad1 {[%clk 0:01:33]}  e6 {[%clk 0:01:55]} 22. Rxd8+ {[%clk 0:01:31]}  Qxd8 {[%clk 0:01:56]} 23. Rd1 {[%clk 0:01:31]}  Qc7 {[%clk 0:01:56]} 24. Ng5 {[%clk 0:01:27]}  Rc1 {[%clk 0:01:42]} 25. N3e4 {[%clk 0:01:21]}  Nf5 {[%clk 0:01:36]} 26. Nf6+ {[%clk 0:01:21]}  Bxf6 {[%clk 0:01:35]} 27. exf6 {[%clk 0:01:22]}  Qxf4 {[%clk 0:00:44]} 28. Nxe6 {[%clk 0:00:48]}  Rxd1+ {[%clk 0:00:44]} 29. Qxd1 {[%clk 0:00:47]}  Bxg2+ {[%clk 0:00:27]} 30. Kxg2 {[%clk 0:00:45]}  Ne3+ {[%clk 0:00:26]} 0-1


[Site "https://www.chess.com"]

[Event "Titled Tuesday Blitz June 13 Late 2023"]
[White "Kushko, Dmitriy"]
[Black "Arnold, Ken"]
[WhiteFideId "14162261"]
[BlackFideId "2056836"]
[WhiteElo "2230"]
[BlackElo "2449"]
[Result "1-0"]
[Round "1"]
[TimeControl "180+2"]
[Date "2023.06.13"]
[WhiteClock "0:00:57"]
[BlackClock "0:00:04"]
[Board "60"]

1. Nf3 {[%clk 0:03:00]}  c5 {[%clk 0:02:57]} 2. g3 {[%clk 0:03:01]}  d5 {[%clk 0:02:52]} 3. Bg2 {[%clk 0:03:02]}  Nf6 {[%clk 0:02:51]} 4. O-O {[%clk 0:03:01]}  Nc6 {[%clk 0:02:51]} 5. d4 {[%clk 0:03:01]}  Bg4 {[%clk 0:02:50]} 6. dxc5 {[%clk 0:03:00]}  Bxf3 {[%clk 0:02:50]} 7. Bxf3 {[%clk 0:02:54]}  e5 {[%clk 0:02:49]} 8. c4 {[%clk 0:02:55]}  dxc4 {[%clk 0:02:26]} 9. Qa4 {[%clk 0:02:51]}  e4 {[%clk 0:02:16]} 10. Bg2 {[%clk 0:02:51]}  Qa5 {[%clk 0:02:13]} 11. Qxc4 {[%clk 0:02:44]}  Qxc5 {[%clk 0:02:12]} 12. Qb3 {[%clk 0:02:28]}  Bd6 {[%clk 0:01:58]} 13. Nc3 {[%clk 0:02:24]}  O-O {[%clk 0:01:51]} 14. Nxe4 {[%clk 0:02:23]}  Nxe4 {[%clk 0:01:49]} 15. Bxe4 {[%clk 0:02:24]}  Nd4 {[%clk 0:01:46]} 16. Qd3 {[%clk 0:02:23]}  f5 {[%clk 0:01:45]} 17. Bxb7 {[%clk 0:02:21]}  Rab8 {[%clk 0:01:41]} 18. Ba6 {[%clk 0:02:10]}  f4 {[%clk 0:01:24]} 19. Rd1 {[%clk 0:01:43]}  fxg3 {[%clk 0:01:19]} 20. Qxd4 {[%clk 0:01:35]}  gxh2+ {[%clk 0:00:57]} 21. Kh1 {[%clk 0:01:34]}  Rxf2 {[%clk 0:00:42]} 22. Qxc5 {[%clk 0:01:24]}  Bxc5 {[%clk 0:00:42]} 23. b4 {[%clk 0:01:04]}  Rxb4 {[%clk 0:00:13]} 24. Ba3 {[%clk 0:00:58]}  Ra4 {[%clk 0:00:04]} 25. Bxc5 {[%clk 0:00:57]} 1-0


[Site "https://www.chess.com"]

[Event "Titled Tuesday Blitz June 13 Late 2023"]
[White "Mujumdar, Sameer"]
[Black "Goltsev, Dmitry"]
[WhiteFideId "2029707"]
[BlackFideId "24176710"]
[WhiteElo "2104"]
[BlackElo "2356"]
[Result "0-1"]
[Round "1"]
[TimeControl "180+2"]
[Date "2023.06.13"]
[WhiteClock "0:00:28"]
[BlackClock "0:01:25"]
[Board "61"]

1. d4 {[%clk 0:02:59]}  Nf6 {[%clk 0:02:54]} 2. Nf3 {[%clk 0:02:59]}  e6 {[%clk 0:02:54]} 3. Bf4 {[%clk 0:02:59]}  d5 {[%clk 0:02:54]} 4. e3 {[%clk 0:02:59]}  Bd6 {[%clk 0:02:54]} 5. Nbd2 {[%clk 0:02:58]}  Nc6 {[%clk 0:02:54]} 6. Bd3 {[%clk 0:02:55]}  Qe7 {[%clk 0:02:53]} 7. Ne5 {[%clk 0:02:54]}  Nd7 {[%clk 0:02:52]} 8. Ndf3 {[%clk 0:02:44]}  g6 {[%clk 0:02:50]} 9. O-O {[%clk 0:02:39]}  f6 {[%clk 0:02:48]} 10. Nxc6 {[%clk 0:02:19]}  bxc6 {[%clk 0:02:46]} 11. Bxd6 {[%clk 0:02:19]}  cxd6 {[%clk 0:02:47]} 12. c4 {[%clk 0:02:18]}  O-O {[%clk 0:02:41]} 13. Qc2 {[%clk 0:02:09]}  f5 {[%clk 0:02:36]} 14. b4 {[%clk 0:02:05]}  Bb7 {[%clk 0:02:27]} 15. cxd5 {[%clk 0:01:56]}  cxd5 {[%clk 0:02:27]} 16. Qc7 {[%clk 0:01:55]}  Rab8 {[%clk 0:02:23]} 17. Rfc1 {[%clk 0:01:52]}  Rfd8 {[%clk 0:02:13]} 18. a3 {[%clk 0:01:45]}  e5 {[%clk 0:02:13]} 19. Bb5 {[%clk 0:01:37]}  e4 {[%clk 0:02:04]} 20. Nd2 {[%clk 0:01:35]}  Kf7 {[%clk 0:02:04]} 21. Bxd7 {[%clk 0:01:31]}  Qxd7 {[%clk 0:02:04]} 22. Nb3 {[%clk 0:01:25]}  Rbc8 {[%clk 0:01:55]} 23. Qxd7+ {[%clk 0:01:22]}  Rxd7 {[%clk 0:01:56]} 24. Rxc8 {[%clk 0:01:20]}  Bxc8 {[%clk 0:01:56]} 25. Rc1 {[%clk 0:01:20]}  Bb7 {[%clk 0:01:54]} 26. Kf1 {[%clk 0:01:18]}  Ba6+ {[%clk 0:01:47]} 27. Ke1 {[%clk 0:01:18]}  Bc4 {[%clk 0:01:48]} 28. Na5 {[%clk 0:01:18]}  Rc7 {[%clk 0:01:45]} 29. Kd2 {[%clk 0:01:14]}  Ke6 {[%clk 0:01:44]} 30. f4 {[%clk 0:01:08]}  exf3 {[%clk 0:01:40]} 31. gxf3 {[%clk 0:01:09]}  g5 {[%clk 0:01:40]} 32. e4 {[%clk 0:01:03]}  h5 {[%clk 0:01:32]} 33. Nxc4 {[%clk 0:00:41]}  dxc4 {[%clk 0:01:31]} 34. Ke3 {[%clk 0:00:36]}  f4+ {[%clk 0:01:29]} 35. Kd2 {[%clk 0:00:36]}  d5 {[%clk 0:01:28]} 36. Kc3 {[%clk 0:00:33]}  dxe4 {[%clk 0:01:27]} 37. fxe4 {[%clk 0:00:33]}  g4 {[%clk 0:01:27]} 38. a4 {[%clk 0:00:31]}  f3 {[%clk 0:01:26]} 39. b5 {[%clk 0:00:30]}  h4 {[%clk 0:01:27]} 40. Rg1 {[%clk 0:00:29]}  f2 {[%clk 0:01:25]} 41. Rf1 {[%clk 0:00:28]}  g3 {[%clk 0:01:25]} 0-1


[Site "https://www.chess.com"]

[Event "Titled Tuesday Blitz June 13 Late 2023"]
[White "Kosakowski, Jakub"]
[Black "Karas, Marek"]
[WhiteFideId "1185080"]
[BlackFideId "14928558"]
[WhiteElo "2488"]
[BlackElo "2229"]
[Result "1-0"]
[Round "1"]
[TimeControl "180+2"]
[Date "2023.06.13"]
[WhiteClock "0:00:08"]
[BlackClock "0:00:03"]
[Board "62"]

1. Nc3 {[%clk 0:02:55]}  e6 {[%clk 0:02:59]} 2. e4 {[%clk 0:02:54]}  d5 {[%clk 0:02:59]} 3. d4 {[%clk 0:02:54]}  Nf6 {[%clk 0:03:00]} 4. e5 {[%clk 0:02:51]}  Nfd7 {[%clk 0:03:00]} 5. f4 {[%clk 0:02:51]}  c5 {[%clk 0:03:00]} 6. Nf3 {[%clk 0:02:52]}  Nc6 {[%clk 0:03:00]} 7. Be3 {[%clk 0:02:53]}  Be7 {[%clk 0:03:00]} 8. Qd2 {[%clk 0:02:53]}  O-O {[%clk 0:03:00]} 9. Bd3 {[%clk 0:02:52]}  b6 {[%clk 0:02:55]} 10. O-O {[%clk 0:02:50]}  f5 {[%clk 0:02:51]} 11. exf6 {[%clk 0:02:40]}  Nxf6 {[%clk 0:02:41]} 12. h3 {[%clk 0:02:34]}  Bd7 {[%clk 0:02:30]} 13. Rae1 {[%clk 0:02:33]}  c4 {[%clk 0:02:22]} 14. Be2 {[%clk 0:02:31]}  a6 {[%clk 0:02:22]} 15. Ne5 {[%clk 0:02:30]}  b5 {[%clk 0:02:16]} 16. Bf3 {[%clk 0:02:27]}  b4 {[%clk 0:02:09]} 17. Ne2 {[%clk 0:02:27]}  Rc8 {[%clk 0:01:49]} 18. c3 {[%clk 0:02:20]}  a5 {[%clk 0:01:49]} 19. Ng3 {[%clk 0:02:18]}  Nxe5 {[%clk 0:01:40]} 20. fxe5 {[%clk 0:02:17]}  Ne8 {[%clk 0:01:39]} 21. Bg4 {[%clk 0:02:09]}  Nc7 {[%clk 0:01:38]} 22. Rxf8+ {[%clk 0:02:08]}  Bxf8 {[%clk 0:01:34]} 23. Rf1 {[%clk 0:02:09]}  Nb5 {[%clk 0:01:29]} 24. Nh5 {[%clk 0:02:04]}  Rc7 {[%clk 0:01:22]} 25. Qf2 {[%clk 0:01:56]}  Qe8 {[%clk 0:01:14]} 26. Qg3 {[%clk 0:01:54]}  Qg6 {[%clk 0:01:07]} 27. Nf4 {[%clk 0:01:52]}  Qe8 {[%clk 0:01:06]} 28. Qf3 {[%clk 0:01:41]}  Rc8 {[%clk 0:00:57]} 29. Bh5 {[%clk 0:00:55]}  g6 {[%clk 0:00:56]} 30. Bg4 {[%clk 0:00:54]}  bxc3 {[%clk 0:00:53]} 31. Nxd5 {[%clk 0:00:52]}  exd5 {[%clk 0:00:48]} 32. Qxd5+ {[%clk 0:00:52]}  Kh8 {[%clk 0:00:44]} 33. Bxd7 {[%clk 0:00:52]}  Nc7 {[%clk 0:00:31]} 34. Qc6 {[%clk 0:00:40]}  Qd8 {[%clk 0:00:08]} 35. bxc3 {[%clk 0:00:39]}  Rb8 {[%clk 0:00:08]} 36. Rf7 {[%clk 0:00:35]}  Nb5 {[%clk 0:00:05]} 37. d5 {[%clk 0:00:12]}  Bg7 {[%clk 0:00:04]} 38. e6 {[%clk 0:00:10]}  Qg8 {[%clk 0:00:05]} 39. Qxb5 {[%clk 0:00:05]}  Rxb5 {[%clk 0:00:03]} 40. Bxb5 {[%clk 0:00:06]}  Bxc3 {[%clk 0:00:03]} 41. Bxc4 {[%clk 0:00:06]}  Bb4 {[%clk 0:00:03]} 42. Bd4+ {[%clk 0:00:06]}  Qg7 {[%clk 0:00:02]} 43. Bxg7+ {[%clk 0:00:07]}  Kg8 {[%clk 0:00:03]} 44. d6 {[%clk 0:00:07]}  Bxd6 {[%clk 0:00:03]} 45. e7 {[%clk 0:00:08]}  Bxe7 {[%clk 0:00:03]} 46. Rxe7# {[%clk 0:00:08]} 1-0


[Site "https://www.chess.com"]

[Event "Titled Tuesday Blitz June 13 Late 2023"]
[White "Rama, Tejas"]
[Black "Siddharth, Jagadeesh"]
[WhiteFideId "30907381"]
[BlackFideId "5818320"]
[WhiteElo "2089"]
[BlackElo "2303"]
[Result "1-0"]
[Round "1"]
[TimeControl "180+2"]
[Date "2023.06.13"]
[WhiteClock "0:00:10"]
[BlackClock "0:00:12"]
[Board "63"]

1. d4 {[%clk 0:02:36]}  Nf6 {[%clk 0:02:59]} 2. c4 {[%clk 0:02:36]}  d6 {[%clk 0:02:58]} 3. Nf3 {[%clk 0:02:36]}  Nbd7 {[%clk 0:02:59]} 4. Nc3 {[%clk 0:02:36]}  e5 {[%clk 0:02:59]} 5. e4 {[%clk 0:02:36]}  g6 {[%clk 0:02:59]} 6. Be2 {[%clk 0:02:37]}  Bg7 {[%clk 0:02:59]} 7. O-O {[%clk 0:02:36]}  O-O {[%clk 0:03:00]} 8. Be3 {[%clk 0:02:36]}  Qe7 {[%clk 0:03:00]} 9. Qc2 {[%clk 0:02:32]}  c6 {[%clk 0:03:00]} 10. d5 {[%clk 0:02:32]}  c5 {[%clk 0:03:00]} 11. Nd2 {[%clk 0:02:30]}  Kh8 {[%clk 0:02:57]} 12. a3 {[%clk 0:02:29]}  Ng8 {[%clk 0:02:57]} 13. b4 {[%clk 0:02:28]}  Bh6 {[%clk 0:02:56]} 14. Bxh6 {[%clk 0:02:22]}  Nxh6 {[%clk 0:02:57]} 15. Nb3 {[%clk 0:02:21]}  b6 {[%clk 0:02:56]} 16. bxc5 {[%clk 0:02:20]}  Nxc5 {[%clk 0:02:36]} 17. Nxc5 {[%clk 0:02:05]}  bxc5 {[%clk 0:02:37]} 18. Rab1 {[%clk 0:01:46]}  f5 {[%clk 0:02:35]} 19. Rb3 {[%clk 0:01:28]}  fxe4 {[%clk 0:02:29]} 20. Nxe4 {[%clk 0:01:27]}  Nf5 {[%clk 0:02:29]} 21. Rb2 {[%clk 0:01:15]}  Nd4 {[%clk 0:02:28]} 22. Qd2 {[%clk 0:01:11]}  Ba6 {[%clk 0:02:12]} 23. Rfb1 {[%clk 0:01:04]}  Rf4 {[%clk 0:02:02]} 24. f3 {[%clk 0:00:56]}  Raf8 {[%clk 0:01:59]} 25. Rb8 {[%clk 0:00:52]}  Kg7 {[%clk 0:01:58]} 26. Rxf8 {[%clk 0:00:51]}  Rxf8 {[%clk 0:01:55]} 27. Qe3 {[%clk 0:00:43]}  Qc7 {[%clk 0:01:39]} 28. Ng5 {[%clk 0:00:41]}  Rb8 {[%clk 0:01:32]} 29. Bd3 {[%clk 0:00:31]}  Rxb1+ {[%clk 0:01:19]} 30. Bxb1 {[%clk 0:00:32]}  Qb6 {[%clk 0:01:18]} 31. Bd3 {[%clk 0:00:29]}  Qb3 {[%clk 0:01:06]} 32. Ne6+ {[%clk 0:00:29]}  Nxe6 {[%clk 0:01:06]} 33. dxe6 {[%clk 0:00:29]}  Bxc4 {[%clk 0:01:05]} 34. e7 {[%clk 0:00:22]}  Kf7 {[%clk 0:00:52]} 35. Qh6 {[%clk 0:00:19]}  Kxe7 {[%clk 0:00:47]} 36. Qxh7+ {[%clk 0:00:19]}  Kf6 {[%clk 0:00:25]} 37. Qh4+ {[%clk 0:00:19]}  Kg7 {[%clk 0:00:22]} 38. Qxc4 {[%clk 0:00:19]}  Qd1+ {[%clk 0:00:22]} 39. Kf2 {[%clk 0:00:19]}  Qd2+ {[%clk 0:00:22]} 40. Be2 {[%clk 0:00:20]}  Qh6 {[%clk 0:00:21]} 41. h3 {[%clk 0:00:20]}  Qg5 {[%clk 0:00:21]} 42. Qe6 {[%clk 0:00:20]}  Qh4+ {[%clk 0:00:21]} 43. Kf1 {[%clk 0:00:20]}  Qd4 {[%clk 0:00:22]} 44. Qe7+ {[%clk 0:00:20]}  Kg8 {[%clk 0:00:21]} 45. Qe8+ {[%clk 0:00:19]}  Kg7 {[%clk 0:00:21]} 46. Qd7+ {[%clk 0:00:19]}  Kg8 {[%clk 0:00:22]} 47. Qc8+ {[%clk 0:00:20]}  Kg7 {[%clk 0:00:22]} 48. Qc7+ {[%clk 0:00:20]}  Kg8 {[%clk 0:00:23]} 49. Qb8+ {[%clk 0:00:20]}  Kg7 {[%clk 0:00:23]} 50. Qxa7+ {[%clk 0:00:21]}  Kh6 {[%clk 0:00:23]} 51. Qa5 {[%clk 0:00:21]}  Qa1+ {[%clk 0:00:22]} 52. Qe1 {[%clk 0:00:21]}  Qxa3 {[%clk 0:00:23]} 53. Qh4+ {[%clk 0:00:21]}  Kg7 {[%clk 0:00:23]} 54. Qe7+ {[%clk 0:00:22]}  Kh6 {[%clk 0:00:24]} 55. Qxd6 {[%clk 0:00:23]}  Qa1+ {[%clk 0:00:24]} 56. Kf2 {[%clk 0:00:23]}  Qc3 {[%clk 0:00:23]} 57. Qd3 {[%clk 0:00:22]}  Qb2 {[%clk 0:00:20]} 58. Qe3+ {[%clk 0:00:22]}  Kh7 {[%clk 0:00:21]} 59. Qxc5 {[%clk 0:00:22]}  Qa1 {[%clk 0:00:21]} 60. h4 {[%clk 0:00:22]}  Qb2 {[%clk 0:00:21]} 61. Qe7+ {[%clk 0:00:21]}  Kg8 {[%clk 0:00:20]} 62. Qe8+ {[%clk 0:00:18]}  Kg7 {[%clk 0:00:21]} 63. Qd7+ {[%clk 0:00:19]}  Kg8 {[%clk 0:00:21]} 64. Qd5+ {[%clk 0:00:17]}  Kg7 {[%clk 0:00:21]} 65. Qb5 {[%clk 0:00:17]}  Qd4+ {[%clk 0:00:21]} 66. Kg3 {[%clk 0:00:16]}  Qf4+ {[%clk 0:00:21]} 67. Kh3 {[%clk 0:00:17]}  Qf5+ {[%clk 0:00:22]} 68. g4 {[%clk 0:00:17]}  Qf4 {[%clk 0:00:21]} 69. Qb7+ {[%clk 0:00:15]}  Kh8 {[%clk 0:00:19]} 70. Qc8+ {[%clk 0:00:15]}  Kg7 {[%clk 0:00:19]} 71. Qd7+ {[%clk 0:00:15]}  Kh8 {[%clk 0:00:20]} 72. Qd8+ {[%clk 0:00:15]}  Kg7 {[%clk 0:00:20]} 73. Qe7+ {[%clk 0:00:15]}  Kh8 {[%clk 0:00:20]} 74. Qg5 {[%clk 0:00:15]}  Qd4 {[%clk 0:00:14]} 75. Qh6+ {[%clk 0:00:15]}  Kg8 {[%clk 0:00:13]} 76. Qxg6+ {[%clk 0:00:16]}  Kh8 {[%clk 0:00:14]} 77. Qh6+ {[%clk 0:00:15]}  Kg8 {[%clk 0:00:14]} 78. Qg5+ {[%clk 0:00:12]}  Kh8 {[%clk 0:00:15]} 79. Qh5+ {[%clk 0:00:12]}  Kg8 {[%clk 0:00:15]} 80. Qe8+ {[%clk 0:00:12]}  Kg7 {[%clk 0:00:14]} 81. h5 {[%clk 0:00:10]}  e4 {[%clk 0:00:13]} 82. Qg6+ {[%clk 0:00:10]}  Kh8 {[%clk 0:00:13]} 83. Qxe4 {[%clk 0:00:10]}  Qg1 {[%clk 0:00:12]} 84. Qe8+ {[%clk 0:00:08]}  Kg7 {[%clk 0:00:13]} 85. Qe7+ {[%clk 0:00:09]}  Kh8 {[%clk 0:00:11]} 86. Qf8+ {[%clk 0:00:09]}  Kh7 {[%clk 0:00:12]} 87. Bd3# {[%clk 0:00:10]} 1-0


[Site "https://www.chess.com"]

[Event "Titled Tuesday Blitz June 13 Late 2023"]
[White "Rustemov, Alexander"]
[Black "Wizard_of_Odds"]
[WhiteFideId "4119002"]
[WhiteElo "2811"]
[BlackElo "2445"]
[Result "0-1"]
[Round "1"]
[TimeControl "180+2"]
[Date "2023.06.13"]
[WhiteClock "0:00:06"]
[BlackClock "0:00:13"]
[Board "64"]

1. d4 {[%clk 0:03:00]}  d5 {[%clk 0:02:58]} 2. c4 {[%clk 0:03:01]}  c6 {[%clk 0:02:58]} 3. Nc3 {[%clk 0:03:02]}  Nf6 {[%clk 0:02:57]} 4. e3 {[%clk 0:03:02]}  Bf5 {[%clk 0:02:56]} 5. cxd5 {[%clk 0:03:01]}  cxd5 {[%clk 0:02:55]} 6. Qb3 {[%clk 0:03:02]}  Nc6 {[%clk 0:02:52]} 7. Qxb7 {[%clk 0:03:02]}  Bd7 {[%clk 0:02:52]} 8. Qb3 {[%clk 0:03:02]}  Rb8 {[%clk 0:02:41]} 9. Qd1 {[%clk 0:03:02]}  Bf5 {[%clk 0:02:38]} 10. Bb5 {[%clk 0:02:57]}  Qb6 {[%clk 0:02:20]} 11. Nf3 {[%clk 0:02:52]}  a6 {[%clk 0:02:17]} 12. Bxc6+ {[%clk 0:02:50]}  Qxc6 {[%clk 0:02:18]} 13. Ne5 {[%clk 0:02:51]}  Qb7 {[%clk 0:02:07]} 14. Qa4+ {[%clk 0:02:50]}  Nd7 {[%clk 0:02:07]} 15. O-O {[%clk 0:02:39]}  f6 {[%clk 0:02:07]} 16. Nxd7 {[%clk 0:02:35]}  Bxd7 {[%clk 0:02:08]} 17. Qd1 {[%clk 0:02:27]}  Rc8 {[%clk 0:02:00]} 18. Qh5+ {[%clk 0:02:23]}  g6 {[%clk 0:01:57]} 19. Qxd5 {[%clk 0:02:23]}  Bc6 {[%clk 0:01:55]} 20. Qb3 {[%clk 0:02:15]}  Bxg2 {[%clk 0:01:54]} 21. Qxb7 {[%clk 0:02:14]}  Bxb7 {[%clk 0:01:55]} 22. e4 {[%clk 0:02:08]}  e6 {[%clk 0:01:38]} 23. f3 {[%clk 0:02:06]}  f5 {[%clk 0:01:35]} 24. Bf4 {[%clk 0:01:59]}  Bb4 {[%clk 0:01:27]} 25. exf5 {[%clk 0:01:41]}  gxf5 {[%clk 0:01:19]} 26. Rac1 {[%clk 0:01:39]}  Kf7 {[%clk 0:01:12]} 27. Kf2 {[%clk 0:01:39]}  Rhd8 {[%clk 0:01:07]} 28. Ne2 {[%clk 0:01:33]}  Bd5 {[%clk 0:00:58]} 29. a3 {[%clk 0:01:31]}  Be7 {[%clk 0:00:55]} 30. Be5 {[%clk 0:01:10]}  a5 {[%clk 0:00:51]} 31. Nf4 {[%clk 0:01:07]}  Bh4+ {[%clk 0:00:43]} 32. Ke3 {[%clk 0:01:07]}  Rg8 {[%clk 0:00:28]} 33. Nxd5 {[%clk 0:00:59]}  exd5 {[%clk 0:00:29]} 34. Rc5 {[%clk 0:00:59]}  Rxc5 {[%clk 0:00:27]} 35. dxc5 {[%clk 0:00:59]}  Ke6 {[%clk 0:00:27]} 36. b4 {[%clk 0:00:58]}  Kxe5 {[%clk 0:00:24]} 37. f4+ {[%clk 0:00:53]}  Ke6 {[%clk 0:00:22]} 38. b5 {[%clk 0:00:48]}  Rc8 {[%clk 0:00:13]} 39. c6 {[%clk 0:00:45]}  Bd8 {[%clk 0:00:13]} 40. Kd3 {[%clk 0:00:42]}  Bb6 {[%clk 0:00:13]} 41. Re1+ {[%clk 0:00:40]}  Kd6 {[%clk 0:00:13]} 42. Re5 {[%clk 0:00:39]}  Rf8 {[%clk 0:00:14]} 43. a4 {[%clk 0:00:39]}  h6 {[%clk 0:00:13]} 44. h3 {[%clk 0:00:39]}  Rf7 {[%clk 0:00:13]} 45. Re8 {[%clk 0:00:38]}  Kc5 {[%clk 0:00:14]} 46. Re5 {[%clk 0:00:30]}  Kb4 {[%clk 0:00:13]} 47. Rxd5 {[%clk 0:00:30]}  Kxa4 {[%clk 0:00:14]} 48. Kc4 {[%clk 0:00:30]}  Ka3 {[%clk 0:00:12]} 49. Rd3+ {[%clk 0:00:15]}  Kb2 {[%clk 0:00:12]} 50. Rb3+ {[%clk 0:00:15]}  Kc2 {[%clk 0:00:12]} 51. Rg3 {[%clk 0:00:12]}  Kd2 {[%clk 0:00:12]} 52. Rg6 {[%clk 0:00:09]}  Ke3 {[%clk 0:00:11]} 53. Rxh6 {[%clk 0:00:08]}  Kxf4 {[%clk 0:00:12]} 54. Rd6 {[%clk 0:00:08]}  Ke5 {[%clk 0:00:11]} 55. Rd1 {[%clk 0:00:04]}  f4 {[%clk 0:00:11]} 56. Re1+ {[%clk 0:00:03]}  Kd6 {[%clk 0:00:11]} 57. Rd1+ {[%clk 0:00:03]}  Kc7 {[%clk 0:00:11]} 58. Rf1 {[%clk 0:00:04]}  f3 {[%clk 0:00:11]} 59. Kd5 {[%clk 0:00:04]}  f2 {[%clk 0:00:11]} 60. Ke4 {[%clk 0:00:04]}  Rh7 {[%clk 0:00:11]} 61. Kf3 {[%clk 0:00:03]}  Rxh3+ {[%clk 0:00:11]} 62. Kg2 {[%clk 0:00:03]}  Rb3 {[%clk 0:00:11]} 63. Rh1 {[%clk 0:00:03]}  Rxb5 {[%clk 0:00:11]} 64. Rh7+ {[%clk 0:00:04]}  Kxc6 {[%clk 0:00:11]} 65. Rh6+ {[%clk 0:00:04]}  Kb7 {[%clk 0:00:12]} 66. Rh7+ {[%clk 0:00:05]}  Ka6 {[%clk 0:00:12]} 67. Rh6 {[%clk 0:00:06]}  Rg5+ {[%clk 0:00:12]} 68. Kf1 {[%clk 0:00:05]}  Rg1+ {[%clk 0:00:12]} 69. Ke2 {[%clk 0:00:05]}  f1=Q+ {[%clk 0:00:12]} 70. Kd2 {[%clk 0:00:06]}  Rg2+ {[%clk 0:00:12]} 71. Kc3 {[%clk 0:00:06]}  Qf3+ {[%clk 0:00:13]} 72. Kc4 {[%clk 0:00:06]}  Rg4# {[%clk 0:00:13]} 0-1


[Site "https://www.chess.com"]

[Event "Titled Tuesday Blitz June 13 Late 2023"]
[White "Sztokbant, Bernardo Vainzoff"]
[Black "Miladinovic, Igor"]
[WhiteFideId "2115956"]
[BlackFideId "4203380"]
[WhiteElo "2222"]
[BlackElo "2568"]
[Result "1-0"]
[Round "1"]
[TimeControl "180+2"]
[Date "2023.06.13"]
[WhiteClock "0:00:37"]
[BlackClock "0:00:00"]
[Board "65"]

1. e4 {[%clk 0:03:00]}  c6 {[%clk 0:02:57]} 2. d4 {[%clk 0:02:59]}  d5 {[%clk 0:02:58]} 3. Nc3 {[%clk 0:03:00]}  dxe4 {[%clk 0:02:59]} 4. Nxe4 {[%clk 0:03:01]}  Nf6 {[%clk 0:02:59]} 5. Nxf6+ {[%clk 0:03:01]}  exf6 {[%clk 0:03:00]} 6. Nf3 {[%clk 0:03:02]}  Bd6 {[%clk 0:03:00]} 7. Bd3 {[%clk 0:03:02]}  O-O {[%clk 0:03:01]} 8. O-O {[%clk 0:03:03]}  Re8 {[%clk 0:03:00]} 9. Be3 {[%clk 0:03:02]}  Nd7 {[%clk 0:02:59]} 10. c4 {[%clk 0:03:02]}  Nf8 {[%clk 0:02:57]} 11. h3 {[%clk 0:03:01]}  Qc7 {[%clk 0:02:52]} 12. Qc2 {[%clk 0:03:01]}  Bf4 {[%clk 0:02:45]} 13. Rfe1 {[%clk 0:02:58]}  Bxe3 {[%clk 0:02:44]} 14. Rxe3 {[%clk 0:02:59]}  Rxe3 {[%clk 0:02:43]} 15. fxe3 {[%clk 0:03:00]}  c5 {[%clk 0:02:42]} 16. Rf1 {[%clk 0:02:50]}  Bd7 {[%clk 0:02:36]} 17. Qf2 {[%clk 0:02:42]}  Re8 {[%clk 0:02:35]} 18. d5 {[%clk 0:02:36]}  Ng6 {[%clk 0:02:30]} 19. Nh4 {[%clk 0:02:25]}  Ne5 {[%clk 0:02:27]} 20. Be2 {[%clk 0:02:26]}  Qa5 {[%clk 0:02:24]} 21. a3 {[%clk 0:02:24]}  Qd2 {[%clk 0:02:22]} 22. b3 {[%clk 0:01:41]}  Nd3 {[%clk 0:02:15]} 23. Bxd3 {[%clk 0:01:34]}  Qxd3 {[%clk 0:02:16]} 24. e4 {[%clk 0:01:23]}  b6 {[%clk 0:01:53]} 25. Nf5 {[%clk 0:00:57]}  Qxb3 {[%clk 0:01:46]} 26. Nxg7 {[%clk 0:00:54]}  Rf8 {[%clk 0:00:42]} 27. Nh5 {[%clk 0:00:47]}  Bc8 {[%clk 0:00:31]} 28. Qxf6 {[%clk 0:00:39]}  Qe3+ {[%clk 0:00:31]} 29. Kh1 {[%clk 0:00:38]}  Qd4 {[%clk 0:00:00]} 30. e5 {[%clk 0:00:37]} 1-0


[Site "https://www.chess.com"]